bitfinex/quotes_ETHUSD_20241024
["timestamp","ask_amount","ask_price","bid_price","bid_amount"]
[1729757575113,5.21473737,2549.4,2549.0,0.5617965]
[1729757576931,3.92267,2549.3,2549.1,0.1615672]
[1729757577127,5.97208737,2549.2,2549.1,0.1615672]
[1729757577639,5.97208737,2549.2,2548.8,0.55]
[1729757577842,5.97208737,2549.2,2549.1,0.1615672]
[1729757578163,3.92307,2549.1,2548.7,0.55]
[1729757578368,1.29219737,2549.0,2548.7,0.55]
[1729757578657,5.21526737,2549.1,2548.7,0.55]
[1729757578863,5.21526737,2549.1,2548.6,4.72709]
[1729757579077,1.29219737,2549.1,2548.6,10.05204074]
[1729757579427,1.29219737,2549.1,2548.6,6.12842074]
[1729757580265,1.29219737,2549.1,2548.7,0.55]
[1729757581072,2.04929737,2549.2,2548.8,3.92339]
[1729757581435,0.7571,2549.4,2548.9,2.64569737]
[1729757581631,5.97150737,2549.6,2549.1,4.47285]
[1729757581834,3.92236,2549.5,2549.1,0.55]
[1729757582061,1.29219737,2549.5,2549.1,4.47293]
[1729757582429,1.29219737,2549.4,2549.1,0.55]
[1729757582657,2.04929737,2549.2,2548.7,0.8035]
[1729757582965,2.04929737,2549.2,2548.8,3.92341]
[1729757583179,2.04929737,2549.2,2548.8,4.396101]
[1729757583688,0.7571,2549.2,2548.8,4.396101]
[1729757584489,4.67991,2549.2,2548.8,0.472691]
[1729757584993,4.67991,2549.2,2548.8,4.396091]
[1729757585499,1.29219737,2548.9,2548.6,3.92357]
[1729757585781,0.7571,2548.9,2548.7,0.55]
[1729757586499,0.7571,2548.9,2548.7,4.47356]
[1729757587058,0.7571,2548.9,2548.7,0.55]
[1729757588291,0.7571,2548.9,2548.7,4.47356]
[1729757588490,0.7571,2548.9,2548.7,5.313273]
[1729757588859,0.7571,2548.9,2548.7,1.389713]
[1729757589083,0.7571,2548.9,2548.7,0.55]
[1729757589763,2.04929737,2548.9,2548.7,0.55]
[1729757590081,0.7571,2548.9,2548.7,0.55]
[1729757590285,0.7571,2548.9,2548.4,8.79742]
[1729757590286,1.29219737,2548.8,2548.4,8.79742]
[1729757591170,5.97265737,2548.9,2548.4,8.79742]
[1729757591369,5.97265737,2548.9,2548.4,10.19880374]
[1729757592108,5.97265737,2548.9,2548.5,0.15681821]
[1729757592304,1.29219737,2548.8,2548.5,0.15681821]
[1729757592489,5.97265737,2548.9,2548.5,0.15681821]
[1729757592707,5.97265737,2548.9,2548.5,1.58477541]
[1729757592906,5.97265737,2548.9,2548.5,5.50863541]
[1729757592907,0.7571,2548.9,2548.5,5.50863541]
[1729757595521,5.97257737,2548.9,2548.5,1.58477541]
[1729757595826,1.29219737,2548.6,2548.5,0.15681821]
[1729757596424,1.29219737,2548.6,2548.2,0.7936]
[1729757596425,6.03345737,2548.7,2548.2,4.71793]
[1729757596589,6.03345737,2548.7,2548.5,0.15695535]
[1729757596794,5.21599737,2548.6,2548.2,0.7936]
[1729757596988,0.8177,2548.4,2548.1,3.92439]
[1729757597194,0.8177,2548.4,2548.0,3.9245]
[1729757597826,2.10989737,2548.4,2548.0,3.9245]
[1729757598157,0.8177,2548.4,2548.0,3.9245]
[1729757598431,6.03392737,2548.4,2547.9,4.71839]
[1729757598631,9.95806737,2548.4,2547.9,1.78714174]
[1729757598862,6.03392737,2548.4,2547.9,1.8656293]
[1729757598993,6.03392737,2548.4,2547.9,1.78714174]
[1729757599194,6.03392737,2548.4,2547.9,5.71186174]
[1729757599894,1.29219737,2548.3,2547.9,5.71186174]
[1729757600095,6.03392737,2548.4,2547.9,5.71186174]
[1729757600539,6.03392737,2548.4,2547.9,4.91826174]
[1729757601220,5.21648737,2548.3,2547.8,3.92493]
[1729757601622,1.29219737,2548.3,2547.8,7.8498]
[1729757601931,6.03392737,2548.4,2547.9,3.92476]
[1729757602301,1.29219737,2548.3,2547.9,3.92476]
[1729757602501,6.03392737,2548.4,2547.9,4.91832374]
[1729757603435,1.29219737,2548.3,2547.9,4.91832374]
[1729757604238,9.95805737,2548.4,2547.9,4.91832374]
[1729757604601,9.95805737,2548.4,2547.7,4.71868]
[1729757604602,5.21652737,2548.2,2547.7,4.71868]
[1729757604799,5.21652737,2548.2,2547.6,3.92525]
[1729757604800,2.10989737,2548.0,2547.6,3.92525]
[1729757605130,2.10989737,2548.0,2547.5,12.71424]
[1729757605335,2.10989737,2548.0,2547.6,5.32589374]
[1729757605531,0.8177,2548.0,2547.6,5.32589374]
[1729757606615,0.8177,2548.0,2547.7,3.92509]
[1729757606957,0.8177,2548.0,2547.8,0.15293307]
[1729757607256,0.8177,2548.0,2547.7,3.92509]
[1729757607453,0.8177,2548.0,2547.9,0.1523865]
[1729757607619,0.8177,2548.0,2547.8,0.15244604]
[1729757607817,2.10989737,2548.0,2547.9,0.1523865]
[1729757608261,2.10989737,2548.0,2547.6,3.92525]
[1729757608467,2.10989737,2548.0,2547.9,0.15251062]
[1729757608925,2.10989737,2548.0,2547.6,3.92525]
[1729757609126,2.10989737,2548.0,2547.7,0.15262972]
[1729757610166,1.29219737,2547.9,2547.7,0.15262972]
[1729757610338,1.29219737,2547.8,2547.7,0.15262972]
[1729757610535,1.29219737,2547.8,2547.5,7.99531]
[1729757610734,1.29219737,2547.8,2547.6,0.15268928]
[1729757610951,1.29219737,2547.9,2547.6,0.15268928]
[1729757611374,3.92452,2548.1,2547.6,0.15268928]
[1729757611375,2.10989737,2547.7,2547.6,0.15268928]
[1729757611535,0.8177,2547.7,2547.6,0.15268928]
[1729757613876,1.29219737,2547.9,2547.6,0.15268928]
[1729757614034,2.10989737,2547.9,2547.6,0.15268928]
[1729757614379,0.8177,2547.9,2547.6,0.15268928]
[1729757614552,0.8177,2547.9,2547.6,0.69383179]
[1729757614748,2.10989737,2547.9,2547.6,0.69383179]
[1729757614966,0.8177,2547.9,2547.6,0.69383179]
[1729757616240,2.10989737,2547.9,2547.6,0.15268928]
[1729757616584,1.29219737,2547.8,2547.6,0.15268928]
[1729757616740,5.21726737,2547.8,2547.6,0.15268928]
[1729757616940,5.21726737,2547.8,2547.3,3.92563]
[1729757617263,6.03471737,2547.9,2547.4,0.1532854]
[1729757618477,5.21717737,2547.8,2547.4,0.1532854]
[1729757620284,3.92498,2547.8,2547.4,0.1532854]
[1729757620581,5.21717737,2547.8,2547.4,0.1532854]
[1729757620982,1.29219737,2547.6,2547.4,0.1532854]
[1729757621190,5.21730737,2547.7,2547.4,0.1532854]
[1729757621362,5.21730737,2547.7,2547.2,4.71944]
[1729757621569,3.92511,2547.7,2547.3,0.15334497]
[1729757621761,0.7745,2547.6,2547.3,0.15334497]
[1729757622947,4.69977,2547.6,2547.3,0.15334497]
[1729757623186,5.99196737,2547.6,2547.3,0.15334497]
[1729757624949,5.21763737,2547.5,2547.0,0.7945]
[1729757625150,5.21763737,2547.5,2547.1,0.15346412]
[1729757625376,1.29219737,2547.4,2547.1,0.15346412]
[1729757625686,5.21763737,2547.5,2547.1,0.15346412]
[1729757625988,2.06669737,2547.4,2547.1,0.15346412]
[1729757626365,2.06669737,2547.4,2546.8,9.14495737]
[1729757626562,2.06669737,2547.4,2546.9,1.55467935]
[1729757626887,2.06669737,2547.2,2546.9,0.15373361]
[1729757627046,0.7745,2547.2,2546.9,0.15373361]
[1729757627245,0.7745,2547.2,2546.7,4.8645]
[1729757627473,5.99260737,2547.2,2547.0,0.15385702]
[1729757627673,5.99260737,2547.2,2546.7,4.8645]
[1729757627888,5.99260737,2547.2,2547.1,0.15379744]
[1729757627889,2.06669737,2547.2,2547.1,0.15379744]
[1729757628490,2.06669737,2547.2,2546.7,4.07]
[1729757628799,1.29219737,2547.1,2546.7,4.07]
[1729757629090,1.29219737,2547.1,2546.8,0.15417231]
[1729757630655,5.99265737,2547.2,2546.8,0.15417231]
[1729757633354,4.70046,2547.2,2546.8,0.15417231]
[1729757633656,5.99265737,2547.2,2546.8,1.09848928]
[1729757639977,1.29219737,2547.1,2546.8,1.09848928]
[1729757640185,5.99265737,2547.2,2546.8,0.15417231]
[1729757640497,3.92531,2547.6,2546.8,0.15417231]
[1729757640498,6.01202737,2547.6,2547.0,1.29219737]
[1729757640697,1.29219737,2547.5,2547.0,3.92616]
[1729757640897,1.29219737,2547.4,2547.1,0.63614406]
[1729757641255,1.29219737,2547.5,2547.1,0.63614406]
[1729757641493,1.29219737,2547.4,2547.1,0.63614406]
[1729757641652,8.64518,2547.6,2547.1,0.63614406]
[1729757641653,1.29219737,2547.5,2547.1,0.63614406]
[1729757642595,2.08669737,2547.6,2547.2,0.8125]
[1729757642809,2.08669737,2547.6,2547.2,1.75042696]
[1729757642983,1.29219737,2547.5,2547.3,0.15430587]
[1729757643515,2.08669737,2547.6,2547.3,0.15430587]
[1729757644097,0.7945,2547.8,2547.3,1.44650324]
[1729757644408,3.9248,2547.9,2547.3,1.44650324]
[1729757644572,5.21699737,2547.9,2547.4,0.6263257]
[1729757644910,5.21699737,2547.9,2547.5,0.15404943]
[1729757645120,5.21699737,2547.9,2547.5,0.96654943]
[1729757645271,1.29219737,2547.9,2547.5,1.26290713]
[1729757646124,5.21699737,2547.9,2547.5,1.26290713]
[1729757646295,1.29219737,2547.8,2547.5,1.26290713]
[1729757646969,3.9248,2547.9,2547.5,1.26290713]
[1729757646970,5.21669737,2548.1,2547.5,6.55890851]
[1729757647173,5.21669737,2548.1,2547.5,5.18820713]
[1729757647174,1.29219737,2548.0,2547.5,5.18820713]
[1729757647501,1.29219737,2548.0,2547.6,0.71067302]
[1729757647802,1.29219737,2548.0,2547.7,0.15358384]
[1729757648577,5.21684737,2548.0,2547.7,0.15358384]
[1729757648776,5.21684737,2548.0,2547.5,1.1088577]
[1729757649003,5.21684737,2548.0,2547.6,0.1536434]
[1729757649203,5.21684737,2548.0,2547.6,0.47174582]
[1729757649378,3.9245,2548.1,2547.6,0.47174582]
[1729757649590,3.92427,2548.3,2547.8,1.29219737]
[1729757649789,5.21646737,2548.3,2547.9,0.97986474]
[1729757650479,5.21646737,2548.3,2547.9,1.60742297]
[1729757650675,3.92427,2548.3,2547.9,1.60742297]
[1729757651682,3.92398,2548.5,2547.9,1.60742297]
[1729757652014,5.21623737,2548.4,2547.9,5.53221297]
[1729757652317,1.29219737,2548.3,2547.9,1.60742297]
[1729757653576,5.21623737,2548.4,2547.9,1.60742297]
[1729757653777,3.92382,2548.6,2548.1,1.29219737]
[1729757653982,9.13983737,2548.6,2548.2,0.97968613]
[1729757654326,5.21601737,2548.6,2548.2,0.97968613]
[1729757654617,9.13985737,2548.6,2548.2,0.97968613]
[1729757655182,5.21601737,2548.6,2548.2,0.97968613]
[1729757655384,3.92352,2548.8,2548.3,2.11859737]
[1729757655606,5.21541737,2549.0,2548.4,2.07353986]
[1729757655808,1.29219737,2548.9,2548.5,0.8264]
[1729757656016,9.13858737,2549.0,2548.5,0.8264]
[1729757656227,5.21538737,2549.0,2548.6,0.1525318]
[1729757656386,9.13858737,2549.0,2548.6,0.1525318]
[1729757656587,0.8106,2549.1,2548.6,0.1525318]
[1729757656787,7.84583,2549.2,2548.6,0.1525318]
[1729757656788,3.92289,2549.2,2548.8,0.8264]
[1729757657084,3.9225,2549.4,2548.9,0.15235328]
[1729757657300,1.29219737,2549.2,2548.9,0.15235328]
[1729757657493,5.21514737,2549.1,2548.9,0.15235328]
[1729757657691,1.29219737,2549.1,2548.9,0.15235328]
[1729757657918,5.21508737,2549.2,2548.9,0.15235328]
[1729757658122,1.29219737,2549.0,2548.9,0.15235328]
[1729757658424,3.9231,2549.0,2548.9,0.15235328]
[1729757658832,3.9231,2549.0,2548.6,0.8264]
[1729757659007,3.9231,2549.0,2548.9,0.15161495]
[1729757659217,3.9231,2549.0,2548.6,0.8264]
[1729757659523,3.9231,2549.0,2548.9,0.15161495]
[1729757659689,3.9231,2549.0,2548.6,0.8264]
[1729757659884,3.9231,2549.0,2548.9,0.15161495]
[1729757660087,3.9231,2549.0,2548.6,0.8264]
[1729757660325,3.9231,2549.0,2548.9,0.15161495]
[1729757660817,3.9231,2549.0,2548.6,0.8264]
[1729757661119,3.9231,2549.0,2548.9,0.15161495]
[1729757661326,3.92327,2548.9,2548.6,0.8264]
[1729757661506,3.92327,2548.9,2548.6,1.301432]
[1729757661713,3.92341,2548.8,2548.6,0.8264]
[1729757662523,7.8463,2549.0,2548.6,0.8264]
[1729757662700,3.9231,2549.0,2548.6,0.8264]
[1729757663521,7.8463,2549.0,2548.6,0.8264]
[1729757663732,3.9231,2549.0,2548.6,0.8264]
[1729757664024,3.92326,2548.9,2548.6,0.8264]
[1729757664401,3.9231,2549.0,2548.6,0.8264]
[1729757665316,7.84629,2549.0,2548.6,0.8264]
[1729757667111,7.84629,2549.0,2548.7,0.15147268]
[1729757667427,3.9231,2549.0,2548.7,0.15147268]
[1729757668017,3.92328,2548.9,2548.7,0.15147268]
[1729757669339,7.84635,2549.0,2548.7,0.15147268]
[1729757669536,3.9233,2548.9,2548.7,0.15147268]
[1729757670025,3.92341,2548.8,2548.7,0.15147268]
[1729757670398,3.92341,2548.8,2548.5,0.55]
[1729757670600,3.92341,2548.8,2548.6,0.15156484]
[1729757674110,7.84667,2548.9,2548.6,0.15156484]
[1729757675425,3.9233,2548.9,2548.6,0.15156484]
[1729757679335,7.84664,2548.9,2548.6,0.15156484]
[1729757679917,3.9233,2548.9,2548.6,0.15156484]
[1729757681598,7.84669,2548.9,2548.6,0.15156484]
[1729757683909,3.92343,2548.8,2548.6,0.15156484]
[1729757688031,5.21406965,2548.9,2548.6,0.15156484]
[1729757688032,3.92356,2548.7,2548.6,0.15156484]
[1729757695227,3.92356,2548.7,2548.4,0.8264]
[1729757695554,3.92356,2548.7,2548.5,0.15177456]
[1729757697560,3.92372,2548.6,2548.5,0.15177456]
[1729757698353,3.92372,2548.6,2548.2,0.8323]
[1729757698528,3.92372,2548.6,2548.5,0.15177456]
[1729757698740,3.9239,2548.5,2548.2,1.82951597]
[1729757699765,3.9239,2548.5,2548.2,0.8323]
[1729757700463,3.92372,2548.6,2548.2,0.8323]
[1729757700661,3.92367,2548.7,2548.2,6.04738965]
[1729757700877,3.92373,2548.6,2548.2,2.12306965]
[1729757701026,3.92373,2548.6,2548.2,0.8323]
[1729757701481,3.92373,2548.6,2548.2,1.82951097]
[1729757702363,3.92367,2548.7,2548.2,1.82951097]
[1729757702568,0.36708116,2548.6,2548.2,5.75384097]
[1729757702788,7.84732,2548.7,2548.2,5.75384097]
[1729757702936,0.36708129,2548.6,2548.2,5.75384097]
[1729757703139,7.84734,2548.7,2548.2,5.75384097]
[1729757703467,4.29088307,2548.6,2548.2,1.82951097]
[1729757703667,3.9238,2548.6,2548.2,1.82951097]
[1729757703872,0.36712787,2548.5,2548.2,1.82951097]
[1729757704077,3.9238,2548.6,2548.2,1.82951097]
[1729757704381,0.36710984,2548.5,2548.2,0.8323]
[1729757704585,3.9238,2548.6,2548.2,0.8323]
[1729757705577,3.92372,2548.6,2548.2,0.8323]
[1729757706148,3.92365,2548.7,2548.2,4.75662]
[1729757706348,0.36697657,2548.6,2548.2,4.75662]
[1729757706558,3.92365,2548.7,2548.3,0.60473896]
[1729757706763,3.92365,2548.7,2548.2,4.75662]
[1729757706989,4.29075784,2548.6,2548.2,0.8323]
[1729757707292,3.92379,2548.6,2548.2,0.8323]
[1729757707897,3.92379,2548.6,2548.2,4.75663]
[1729757708394,3.92379,2548.6,2548.2,0.8323]
[1729757708964,3.92379,2548.6,2548.2,4.75663]
[1729757709175,3.92379,2548.6,2548.2,5.75382097]
[1729757710270,9.93516965,2548.8,2548.2,5.75382097]
[1729757710475,0.36705441,2548.7,2548.2,5.75382097]
[1729757710676,0.36705441,2548.6,2548.2,5.75382097]
[1729757710881,9.93516965,2548.8,2548.2,9.67808097]
[1729757711211,0.36706463,2548.7,2548.2,5.75375097]
[1729757711363,0.36706463,2548.6,2548.2,5.75375097]
[1729757711564,4.72084,2548.8,2548.3,4.63644004]
[1729757711759,0.36706492,2548.7,2548.5,0.55]
[1729757711993,4.72233,2549.0,2548.5,4.47376]
[1729757712301,5.58112219,2548.9,2548.6,0.14674192]
[1729757712503,0.36709254,2548.8,2548.6,0.14674192]
[1729757713007,0.36709254,2548.7,2548.6,0.14674192]
[1729757714529,0.36711393,2548.7,2548.6,0.14674192]
[1729757714735,6.01309965,2549.0,2548.6,0.69182711]
[1729757714935,0.36711743,2548.9,2548.6,0.14674192]
[1729757715138,0.36711743,2548.8,2548.6,0.14674192]
[1729757715312,6.01309965,2549.0,2548.6,0.14674192]
[1729757715513,0.36712235,2548.9,2548.6,0.14674192]
[1729757715708,0.36712235,2548.8,2548.6,0.14674192]
[1729757715921,6.01309965,2549.0,2548.6,0.69965902]
[1729757716241,0.36710312,2548.9,2548.6,0.14674192]
[1729757716440,0.36710312,2548.8,2548.6,0.14674192]
[1729757716596,9.93629965,2549.0,2548.6,0.14674192]
[1729757716597,3.9232,2549.0,2548.6,0.14674192]
[1729757716945,0.36712246,2548.9,2548.7,0.8301]
[1729757717145,0.36712246,2548.8,2548.7,0.8301]
[1729757717437,3.92319,2549.0,2548.7,0.8301]
[1729757717739,0.36710545,2548.9,2548.7,0.8301]
[1729757717905,7.84638,2549.0,2548.7,0.8301]
[1729757718108,0.36710808,2548.9,2548.7,0.8301]
[1729757718615,7.84638,2549.0,2548.7,0.8301]
[1729757718937,3.92327,2548.9,2548.7,0.8301]
[1729757719429,7.84642,2549.0,2548.7,0.8301]
[1729757719738,3.92327,2548.9,2548.7,0.8301]
[1729757721336,0.36700242,2548.8,2548.7,0.8301]
[1729757722537,4.29041242,2548.8,2548.5,0.8301]
[1729757722698,3.92341,2548.8,2548.5,0.8301]
[1729757723803,5.21417965,2548.8,2548.5,0.8301]
[1729757724162,3.92372,2548.6,2548.4,0.55]
[1729757724307,3.92389,2548.5,2548.3,0.8191]
[1729757724512,3.92389,2548.5,2548.1,0.8191]
[1729757724810,3.92389,2548.5,2548.1,3.01332561]
[1729757725012,4.75382,2548.6,2548.1,3.01332561]
[1729757725241,4.75382,2548.6,2548.1,3.09180558]
[1729757725443,8.67763,2548.6,2548.1,3.09180558]
[1729757725756,8.67763,2548.6,2548.1,3.01332561]
[1729757726249,4.75382,2548.6,2548.1,3.01332561]
[1729757726544,4.75382,2548.6,2548.2,0.99379556]
[1729757726755,3.92372,2548.6,2548.2,0.99379556]
[1729757726915,3.92372,2548.6,2548.3,0.14183818]
[1729757727116,1.29076965,2548.7,2548.3,0.14183818]
[1729757727312,3.9239,2548.5,2548.1,1.72255596]
[1729757727514,3.92372,2548.6,2548.4,0.14177866]
[1729757727746,3.92372,2548.6,2548.1,6.93779561]
[1729757728047,3.92372,2548.6,2548.2,0.99377956]
[1729757728349,3.92372,2548.6,2548.3,0.14183818]
[1729757728737,4.75362,2548.8,2548.2,2.28454921]
[1729757728917,4.29054343,2548.7,2548.4,0.14177866]
[1729757729127,4.29071343,2548.6,2548.3,0.14183818]
[1729757729456,3.92374,2548.6,2548.2,2.28454921]
[1729757729660,3.92374,2548.6,2548.3,0.14183818]
[1729757729963,3.92374,2548.6,2548.2,2.28454921]
[1729757730163,3.92374,2548.6,2548.4,0.14177866]
[1729757730377,3.92374,2548.6,2548.3,0.14183818]
[1729757730526,3.92374,2548.6,2548.5,0.14171914]
[1729757730727,4.29076637,2548.6,2548.5,0.14171914]
[1729757730923,0.36702637,2548.6,2548.2,4.91809956]
[1729757731143,3.92357,2548.7,2548.5,0.14171914]
[1729757731340,3.92357,2548.7,2548.2,6.20886921]
[1729757731572,3.92357,2548.7,2548.6,0.14165963]
[1729757731729,4.29062548,2548.7,2548.2,5.21508965]
[1729757732064,3.92357,2548.7,2548.2,5.21508965]
[1729757732264,3.92357,2548.7,2548.3,0.17584201]
[1729757732567,3.92357,2548.7,2548.2,5.21508965]
[1729757732731,3.92357,2548.7,2548.4,0.17578115]
[1729757732928,3.92357,2548.7,2548.3,0.17584201]
[1729757733129,3.92357,2548.7,2548.5,0.1757203]
[1729757733329,4.75362,2548.8,2548.4,0.17578115]
[1729757733577,0.36707461,2548.7,2548.6,0.17565945]
[1729757733743,0.36707322,2548.7,2548.5,0.1757203]
[1729757734064,0.8301,2549.0,2548.6,0.17565945]
[1729757734275,0.36707795,2548.9,2548.6,0.17565945]
[1729757734484,0.36707795,2548.8,2548.6,0.17565945]
[1729757734766,4.75321,2549.0,2548.6,0.17565945]
[1729757734971,0.36708234,2548.9,2548.6,0.17565945]
[1729757735171,0.36708234,2548.8,2548.6,0.17565945]
[1729757735334,3.92327,2548.9,2548.6,0.17565945]
[1729757735537,0.36706815,2548.8,2548.6,0.17565945]
[1729757735759,6.04397965,2549.0,2548.6,0.17565945]
[1729757735760,9.96715965,2549.0,2548.6,0.17565945]
[1729757735969,0.36706913,2548.9,2548.6,0.17565945]
[1729757736185,3.92295,2549.1,2548.7,0.8191]
[1729757736338,0.3670501,2549.0,2548.7,0.8191]
[1729757736539,0.3670501,2548.9,2548.8,0.1754987]
[1729757737276,0.36705094,2548.9,2548.8,0.1754987]
[1729757742237,3.92296,2549.1,2548.8,0.7254987]
[1729757742400,0.36696769,2549.0,2548.8,1.89494455]
[1729757742601,9.13621965,2549.3,2548.8,7.1091142]
[1729757742602,7.84538,2549.3,2548.8,7.1091142]
[1729757742813,0.36697912,2549.2,2548.8,5.89680433]
[1729757743020,0.36697912,2549.1,2548.9,1.3506674]
[1729757743229,3.92282,2549.2,2548.9,1.3506674]
[1729757743395,3.92282,2549.2,2549.0,0.17537704]
[1729757743794,5.21358965,2549.2,2549.0,0.17537704]
[1729757744204,3.92282,2549.2,2549.0,0.17537704]
[1729757745221,0.772,2549.8,2549.1,0.8009]
[1729757745402,3.92218,2549.6,2549.2,0.62845284]
[1729757745590,3.92251,2549.4,2549.2,0.7252554]
[1729757746125,4.69434,2549.5,2549.2,0.7252554]
[1729757747205,3.92234,2549.5,2549.2,1.35854687]
[1729757747396,5.21294965,2549.6,2549.2,1.35854687]
[1729757747596,0.36669137,2549.5,2549.2,1.35854687]
[1729757747797,0.772,2549.9,2549.4,1.29076965]
[1729757748015,0.95341742,2549.8,2549.5,0.55]
[1729757748319,3.92189,2549.8,2549.5,0.99679144]
[1729757749642,1.29076965,2549.8,2549.5,0.99679144]
[1729757749844,3.92204,2549.7,2549.5,0.72477991]
[1729757751551,5.21265965,2549.8,2549.5,0.72477991]
[1729757752246,3.92189,2549.8,2549.5,0.72477991]
[1729757753314,5.21265965,2549.8,2549.5,0.72477991]
[1729757755056,1.29076965,2549.8,2549.5,0.17477991]
[1729757755255,3.92204,2549.7,2549.5,0.17477991]
[1729757755420,3.92204,2549.7,2549.6,0.17426344]
[1729757755626,3.92204,2549.7,2549.4,0.55]
[1729757755943,3.92204,2549.7,2549.5,0.17385556]
[1729757757831,9.90644965,2549.9,2549.5,0.17385556]
[1729757758355,5.98458965,2549.9,2549.5,0.17385556]
[1729757758520,3.92192,2549.8,2549.5,0.17385556]
[1729757758953,3.92206,2549.7,2549.5,0.17385556]
[1729757762358,5.98450965,2549.9,2549.5,0.17385556]
[1729757762562,3.92189,2549.8,2549.6,0.7537]
[1729757763058,3.92174,2549.9,2549.7,0.17373397]
[1729757764561,7.84357,2549.9,2549.7,0.17373397]
[1729757764730,3.92153,2550.1,2549.8,0.55]
[1729757764933,3.92153,2550.1,2549.9,0.95515036]
[1729757765133,3.92153,2550.1,2549.9,0.92725382]
[1729757765521,5.21229965,2550.1,2549.9,0.92725382]
[1729757765726,3.92153,2550.1,2549.9,0.92725382]
[1729757766244,4.7003,2550.3,2549.9,0.92725382]
[1729757766441,3.9212,2550.3,2549.9,1.00568082]
[1729757766764,3.9212,2550.3,2549.9,1.60408587]
[1729757767260,7.8424,2550.3,2549.9,1.60408587]
[1729757767760,5.21196965,2550.3,2549.9,1.60408587]
[1729757767973,5.21196965,2550.3,2549.9,0.92725382]
[1729757768176,3.92126,2550.2,2549.9,0.92725382]
[1729757768468,5.21202965,2550.2,2549.9,0.92725382]
[1729757769060,5.21219965,2550.1,2549.9,0.17355382]
[1729757769261,2.05736965,2550.0,2549.1,0.8155]
[1729757769482,5.21307965,2549.6,2549.3,0.3]
[1729757769772,3.92231,2549.6,2549.4,0.17364959]
[1729757769977,7.8446,2549.6,2549.4,0.17364959]
[1729757770137,3.92233,2549.5,2549.4,0.17364959]
[1729757771984,7.84462,2549.6,2549.4,0.17364959]
[1729757772188,3.92229,2549.6,2549.4,0.17364959]
[1729757772487,3.92229,2549.6,2549.5,0.17341962]
[1729757772692,3.92229,2549.6,2549.2,0.55]
[1729757772852,3.92229,2549.6,2549.3,0.17354123]
[1729757773173,3.92229,2549.6,2549.2,1.62246745]
[1729757773377,3.92229,2549.6,2549.4,0.17348042]
[1729757773562,3.92229,2549.6,2549.3,0.17354123]
[1729757773765,3.92229,2549.6,2549.5,0.17341962]
[1729757773965,3.92229,2549.6,2549.4,0.17348042]
[1729757774155,3.92229,2549.6,2549.5,0.17341962]
[1729757774645,3.92229,2549.6,2549.2,1.70091441]
[1729757774851,0.7666,2549.9,2549.4,0.8155]
[1729757775088,3.92187,2549.8,2549.5,0.72356276]
[1729757775649,7.84385,2549.8,2549.5,0.72356276]
[1729757775957,3.92187,2549.8,2549.5,0.72356276]
[1729757777147,3.92172,2549.9,2549.6,0.8155]
[1729757777673,3.92172,2549.9,2549.7,0.17344116]
[1729757778851,3.92172,2549.9,2549.7,0.16081105]
[1729757779780,9.13383965,2550.1,2549.7,0.84259584]
[1729757779978,3.92158,2550.0,2549.7,0.84259584]
[1729757780888,3.92126,2550.2,2549.9,0.55]
[1729757781053,3.92126,2550.2,2550.1,0.8155]
[1729757781255,3.92126,2550.2,2550.1,0.98827703]
[1729757781753,5.21172965,2550.4,2550.1,0.98827703]
[1729757781754,3.92096,2550.4,2550.1,0.98827703]
[1729757781958,3.92075,2550.6,2550.2,0.55]
[1729757782183,7.84152,2550.6,2550.2,0.55]
[1729757782392,7.84152,2550.6,2550.3,0.17244729]
[1729757782764,7.84152,2550.6,2550.2,0.62841695]
[1729757782967,7.84152,2550.6,2550.4,0.17238653]
[1729757783165,7.84152,2550.6,2550.3,0.17244729]
[1729757783487,7.84152,2550.6,2550.4,0.17238653]
[1729757783789,3.92075,2550.6,2550.2,0.62841723]
[1729757783989,5.21151965,2550.6,2550.5,0.17232577]
[1729757784288,3.92075,2550.6,2550.5,0.17232577]
[1729757784471,3.92075,2550.6,2550.2,1.29401892]
[1729757784791,3.92075,2550.6,2550.3,0.17244729]
[1729757785290,3.92075,2550.6,2550.4,0.17238653]
[1729757785505,9.13229965,2550.6,2550.2,1.29401892]
[1729757785707,9.13229965,2550.6,2550.3,0.17244729]
[1729757786002,9.13229965,2550.6,2550.2,1.29401892]
[1729757786297,5.21155965,2550.5,2550.3,0.17244729]
[1729757786489,3.92079,2550.5,2550.2,0.55]
[1729757786702,5.21151965,2550.6,2550.3,0.17244729]
[1729757786703,3.92095,2550.4,2550.3,0.17244729]
[1729757787006,3.92095,2550.4,2550.2,0.55]
[1729757787166,3.92095,2550.4,2550.3,0.17244729]
[1729757787500,3.92095,2550.4,2550.2,0.55]
[1729757787666,3.92095,2550.4,2550.3,0.17210906]
[1729757787996,3.92095,2550.4,2550.2,0.55]
[1729757788200,3.92095,2550.4,2550.3,0.17210906]
[1729757788504,3.92095,2550.4,2550.2,0.55]
[1729757788798,3.92095,2550.4,2550.3,0.17210906]
[1729757789184,1.29076965,2550.5,2550.2,0.55]
[1729757789391,5.97811965,2550.6,2550.3,0.17210906]
[1729757789889,5.97811965,2550.6,2550.4,0.1720483]
[1729757790067,5.97811965,2550.6,2550.2,0.55]
[1729757790267,3.92091,2550.5,2550.3,0.17210906]
[1729757790468,5.21167965,2550.5,2550.2,0.55]
[1729757790705,3.92096,2550.4,2550.3,0.17210906]
[1729757790890,3.92096,2550.4,2550.2,0.55]
[1729757791202,5.21162965,2550.5,2550.3,0.17210906]
[1729757791503,3.92095,2550.4,2550.2,0.55]
[1729757791666,3.92095,2550.4,2550.3,0.17210906]
[1729757791866,3.92095,2550.4,2550.2,0.55]
[1729757792169,3.92095,2550.4,2550.3,0.17210906]
[1729757792394,1.29076965,2550.5,2550.3,0.17210906]
[1729757792566,1.29076965,2550.5,2550.2,0.55]
[1729757792765,5.21158965,2550.5,2550.4,0.1720483]
[1729757793032,5.21158965,2550.5,2550.3,0.17210906]
[1729757793318,3.92082,2550.5,2550.4,0.1720483]
[1729757793523,3.92082,2550.5,2550.2,0.55]
[1729757793524,3.92097,2550.4,2550.2,0.55]
[1729757793721,3.92097,2550.4,2550.3,0.17210906]
[1729757793881,1.29076965,2550.5,2550.2,0.55]
[1729757794077,5.21159965,2550.5,2550.3,0.17210906]
[1729757794330,5.21159965,2550.5,2550.2,0.55]
[1729757794493,5.21159965,2550.5,2550.3,0.17210906]
[1729757794691,5.21159965,2550.5,2550.2,0.55]
[1729757794991,3.92099,2550.4,2550.3,0.17210906]